[Event "*** Titled Tuesday Blitz"]
[Site "Chess.com"]
[Date "2020.05.26"]
[Round "10"]
[White "enriquetejedor"]
[Black "vinniethepooh"]
[Result "0-1"]
[WhiteElo "2444"]
[BlackElo "2568"]
[TimeControl "180+1"]
[EndTime "12:02:36 PDT"]
[Termination "vinniethepooh won by resignation"]

1. d4 {[%clk 0:03:00.5]} 1... Nf6 {[%clk 0:03:00]} 2. c4 {[%clk 0:02:58.6]} 2...
e6 {[%clk 0:02:59.9]} 3. Nc3 {[%clk 0:02:57.5]} 3... Bb4 {[%clk 0:02:58.2]} 4.
Qc2 {[%clk 0:02:56.9]} 4... b6 {[%clk 0:02:55.1]} 5. e4 {[%clk 0:02:42.2]} 5...
c5 {[%clk 0:02:53.3]} 6. d5 {[%clk 0:02:33.7]} 6... Qe7 {[%clk 0:02:52.4]} 7.
Ne2 {[%clk 0:01:47.6]} 7... exd5 {[%clk 0:02:51.5]} 8. exd5 {[%clk 0:01:48.5]}
8... O-O {[%clk 0:02:49.2]} 9. Bg5 {[%clk 0:01:39.7]} 9... h6 {[%clk 0:02:44.8]}
10. Bh4 {[%clk 0:01:36.8]} 10... d6 {[%clk 0:02:32.2]} 11. O-O-O {[%clk
0:01:22.8]} 11... Nbd7 {[%clk 0:02:12.5]} 12. a3 {[%clk 0:01:13.3]} 12... Ba5
{[%clk 0:02:10.4]} 13. Ng3 {[%clk 0:00:41.7]} 13... Re8 {[%clk 0:02:00]} 14. Nf5
{[%clk 0:00:38]} 14... Qf8 {[%clk 0:01:59.1]} 15. Nb5 {[%clk 0:00:35.3]} 15...
Ne5 {[%clk 0:01:40.3]} 16. Nfxd6 {[%clk 0:00:29.2]} 16... Rd8 {[%clk 0:01:35.9]}
17. Nxc8 {[%clk 0:00:20.8]} 17... Rdxc8 {[%clk 0:01:25.2]} 18. Bxf6 {[%clk
0:00:20.9]} 18... gxf6 {[%clk 0:01:23.2]} 19. Bd3 {[%clk 0:00:19.6]} 19... a6
{[%clk 0:01:21.9]} 20. Nc3 {[%clk 0:00:13]} 20... b5 {[%clk 0:01:22.2]} 21. Bf5
{[%clk 0:00:07.9]} 21... Rcb8 {[%clk 0:01:18.6]} 22. f4 {[%clk 0:00:04.4]} 22...
Nxc4 {[%clk 0:01:18]} 23. Rd3 {[%clk 0:00:04.6]} 23... b4 {[%clk 0:01:14.8]} 24.
Rg3+ {[%clk 0:00:04.5]} 24... Kh8 {[%clk 0:01:14.9]} 25. Ne4 {[%clk 0:00:03.7]}
25... Nd6 {[%clk 0:00:46.6]} 26. Nxf6 {[%clk 0:00:02.5]} 26... bxa3 {[%clk
0:00:45]} 27. Rg8+ {[%clk 0:00:01.7]} 27... Qxg8 {[%clk 0:00:44.9]} 28. Nxg8
{[%clk 0:00:02.5]} 28... a2 {[%clk 0:00:39.7]} 29. Qb1 {[%clk 0:00:01.4]} 29...
axb1=Q+ {[%clk 0:00:39.3]} 30. Kxb1 {[%clk 0:00:02.3]} 30... Rxg8 {[%clk
0:00:38.6]} 31. Bh3 {[%clk 0:00:02.1]} 31... Rab8 {[%clk 0:00:38.3]} 32. g3
{[%clk 0:00:02.1]} 32... Rb4 {[%clk 0:00:37.6]} 33. Rd1 {[%clk 0:00:01.5]} 33...
Rgb8 {[%clk 0:00:37.1]} 34. Rd2 {[%clk 0:00:02]} 34... Re4 {[%clk 0:00:35.3]}
35. Bg2 {[%clk 0:00:01.4]} 35... Bxd2 {[%clk 0:00:34.9]} 36. Bxe4 {[%clk
0:00:01.9]} 36... Nxe4 {[%clk 0:00:35.8]} 0-1

[Event "*** Titled Tuesday Blitz"]
[Site "Chess.com"]
[Date "2020.05.26"]
[Round "10"]
[White "Leo_C"]
[Black "2008king"]
[Result "0-1"]
[WhiteElo "2255"]
[BlackElo "2131"]
[TimeControl "180+1"]
[EndTime "12:02:36 PDT"]
[Termination "2008king won by resignation"]

1. e4 {[%clk 0:03:00.9]} 1... e5 {[%clk 0:02:59.6]} 2. Nf3 {[%clk 0:02:59.2]}
2... Nc6 {[%clk 0:02:59.9]} 3. Bc4 {[%clk 0:02:58.8]} 3... Bc5 {[%clk
0:02:58.9]} 4. b4 {[%clk 0:02:58.5]} 4... Bxb4 {[%clk 0:02:58.8]} 5. c3 {[%clk
0:02:58.4]} 5... Be7 {[%clk 0:02:58.6]} 6. d4 {[%clk 0:02:58.5]} 6... Na5 {[%clk
0:02:58.3]} 7. Bd3 {[%clk 0:02:58]} 7... d6 {[%clk 0:02:57.6]} 8. O-O {[%clk
0:02:58]} 8... Nf6 {[%clk 0:02:57.3]} 9. Nbd2 {[%clk 0:02:57.5]} 9... Bg4 {[%clk
0:02:56.9]} 10. h3 {[%clk 0:02:57.1]} 10... Be6 {[%clk 0:02:56.2]} 11. Ba3
{[%clk 0:02:54]} 11... O-O {[%clk 0:02:54.6]} 12. d5 {[%clk 0:02:52.2]} 12...
Bd7 {[%clk 0:02:52.9]} 13. c4 {[%clk 0:02:52.4]} 13... b6 {[%clk 0:02:52.3]} 14.
Ne1 {[%clk 0:02:50.4]} 14... Nb7 {[%clk 0:02:52.2]} 15. Bb2 {[%clk 0:02:50.2]}
15... Nc5 {[%clk 0:02:52.4]} 16. Bc2 {[%clk 0:02:50.3]} 16... a5 {[%clk
0:02:52]} 17. f4 {[%clk 0:02:50.4]} 17... exf4 {[%clk 0:02:48.9]} 18. e5 {[%clk
0:02:50.6]} 18... dxe5 {[%clk 0:02:48.1]} 19. Bxe5 {[%clk 0:02:50.7]} 19... Bd6
{[%clk 0:02:46.9]} 20. Bxd6 {[%clk 0:02:50.2]} 20... cxd6 {[%clk 0:02:47.8]} 21.
Rxf4 {[%clk 0:02:50.4]} 21... Qe7 {[%clk 0:02:36.4]} 22. Rf3 {[%clk 0:02:42.4]}
22... Rfe8 {[%clk 0:02:33.7]} 23. Nd3 {[%clk 0:02:40.2]} 23... Qe2 {[%clk
0:02:23.7]} 24. Nf4 {[%clk 0:02:31.1]} 24... Qxd1+ {[%clk 0:02:17.8]} 25. Rxd1
{[%clk 0:02:32]} 25... Nfe4 {[%clk 0:01:53.1]} 26. Nxe4 {[%clk 0:02:28.7]} 26...
Nxe4 {[%clk 0:01:54]} 27. Re1 {[%clk 0:02:28.6]} 27... Nc5 {[%clk 0:01:41.1]}
28. Rb1 {[%clk 0:02:27.7]} 28... Rab8 {[%clk 0:01:38.8]} 29. Kf2 {[%clk
0:02:22.9]} 29... g6 {[%clk 0:01:38.6]} 30. Ne2 {[%clk 0:02:11.8]} 30... Re5
{[%clk 0:01:30.7]} 31. Nd4 {[%clk 0:02:08.8]} 31... f5 {[%clk 0:01:22.6]} 32.
Nc6 {[%clk 0:01:58.8]} 32... Bxc6 {[%clk 0:01:22.2]} 33. dxc6 {[%clk 0:01:59.7]}
33... Ne6 {[%clk 0:00:57.7]} 34. Rfb3 {[%clk 0:01:56.3]} 34... Nd4 {[%clk
0:00:51.7]} 35. Rxb6 {[%clk 0:01:44.5]} 35... Rc8 {[%clk 0:00:50.8]} 36. Ba4
{[%clk 0:01:42.2]} 36... Re2+ {[%clk 0:00:49.9]} 37. Kg3 {[%clk 0:01:41]} 37...
Rxa2 {[%clk 0:00:41.1]} 38. c7 {[%clk 0:01:40.4]} 38... Rxc7 {[%clk 0:00:36.4]}
39. Rxd6 {[%clk 0:01:36.7]} 39... Rxa4 {[%clk 0:00:36.4]} 40. Rxd4 {[%clk
0:01:36.2]} 40... Raxc4 {[%clk 0:00:35.9]} 41. Rb8+ {[%clk 0:01:33.8]} 41... Kg7
{[%clk 0:00:35.3]} 42. Rdd8 {[%clk 0:01:33.8]} 42... Rc3+ {[%clk 0:00:29.7]} 43.
Kh4 {[%clk 0:01:33.1]} 43... Kh6 {[%clk 0:00:22.4]} 44. Rd6 {[%clk 0:01:30.3]}
44... R7c4+ {[%clk 0:00:13.1]} 45. g4 {[%clk 0:01:29.5]} 45... fxg4 {[%clk
0:00:10.6]} 46. hxg4 {[%clk 0:01:29.3]} 46... Rb4 {[%clk 0:00:10.4]} 47. Rxb4
{[%clk 0:01:23.8]} 47... axb4 {[%clk 0:00:10.8]} 48. g5+ {[%clk 0:01:24.3]}
48... Kg7 {[%clk 0:00:11.2]} 49. Rd7+ {[%clk 0:01:24.1]} 49... Kg8 {[%clk
0:00:11.7]} 50. Rd8+ {[%clk 0:01:24.2]} 50... Kf7 {[%clk 0:00:12.4]} 51. Rd7+
{[%clk 0:01:24.5]} 51... Ke6 {[%clk 0:00:13.2]} 52. Rxh7 {[%clk 0:01:24.1]}
52... Rc4+ {[%clk 0:00:13.7]} 53. Kg3 {[%clk 0:01:21.1]} 53... Kf5 {[%clk
0:00:14.6]} 54. Rb7 {[%clk 0:01:19.7]} 54... Kxg5 {[%clk 0:00:14.6]} 55. Rb5+
{[%clk 0:01:20]} 55... Kh6 {[%clk 0:00:15.1]} 56. Rb6 {[%clk 0:01:20]} 56... Kh5
{[%clk 0:00:14.4]} 57. Rb5+ {[%clk 0:01:19.9]} 57... g5 {[%clk 0:00:14.9]} 58.
Rb8 {[%clk 0:01:18.7]} 58... Rc3+ {[%clk 0:00:14.9]} 59. Kg2 {[%clk 0:01:18.4]}
59... b3 {[%clk 0:00:15.5]} 60. Rb4 {[%clk 0:01:15.9]} 60... g4 {[%clk 0:00:15]}
61. Kh2 {[%clk 0:01:14.1]} 61... Kh4 {[%clk 0:00:15.1]} 62. Kg2 {[%clk
0:01:14.5]} 62... Rc2+ {[%clk 0:00:15.4]} 63. Kg1 {[%clk 0:01:14.7]} 0-1

[Event "*** Titled Tuesday Blitz"]
[Site "Chess.com"]
[Date "2020.05.26"]
[Round "10"]
[White "51616516516"]
[Black "Unknown_IM"]
[Result "0-1"]
[WhiteElo "2379"]
[BlackElo "2530"]
[TimeControl "180+1"]
[EndTime "12:02:38 PDT"]
[Termination "Unknown_IM won on time"]

1. d4 {[%clk 0:03:00.9]} 1... d5 {[%clk 0:02:59.8]} 2. c4 {[%clk 0:02:59.8]}
2... c6 {[%clk 0:02:59.3]} 3. Nf3 {[%clk 0:02:59.8]} 3... Nf6 {[%clk 0:02:53.8]}
4. Nc3 {[%clk 0:02:59.2]} 4... e6 {[%clk 0:02:53.7]} 5. Bg5 {[%clk 0:02:57.9]}
5... Nbd7 {[%clk 0:02:48.2]} 6. e3 {[%clk 0:02:54.5]} 6... Be7 {[%clk
0:02:41.9]} 7. Rc1 {[%clk 0:02:52.9]} 7... O-O {[%clk 0:02:36.9]} 8. Qc2 {[%clk
0:02:46.3]} 8... b6 {[%clk 0:02:35.4]} 9. Bd3 {[%clk 0:02:45.8]} 9... Bb7 {[%clk
0:02:34]} 10. O-O {[%clk 0:02:45.3]} 10... Rc8 {[%clk 0:02:32.2]} 11. Rfd1
{[%clk 0:02:26.7]} 11... c5 {[%clk 0:02:30.2]} 12. cxd5 {[%clk 0:02:24.2]} 12...
exd5 {[%clk 0:02:28.1]} 13. Bf5 {[%clk 0:02:20]} 13... h6 {[%clk 0:02:25.5]} 14.
Bh4 {[%clk 0:02:13.1]} 14... cxd4 {[%clk 0:02:15]} 15. exd4 {[%clk 0:02:01.7]}
15... Ne4 {[%clk 0:02:07.7]} 16. Bxe7 {[%clk 0:01:41.9]} 16... Qxe7 {[%clk
0:02:06]} 17. Ne5 {[%clk 0:01:16.6]} 17... Nxe5 {[%clk 0:01:21.6]} 18. Bxc8
{[%clk 0:01:15.4]} 18... Rxc8 {[%clk 0:01:16]} 19. Nxd5 {[%clk 0:01:05.6]} 19...
Qg5 {[%clk 0:01:06.6]} 20. Qxc8+ {[%clk 0:00:40.8]} 20... Bxc8 {[%clk
0:01:05.3]} 21. Rxc8+ {[%clk 0:00:41]} 21... Kh7 {[%clk 0:01:05.9]} 22. dxe5
{[%clk 0:00:37.9]} 22... Qxe5 {[%clk 0:01:03.5]} 23. Rc2 {[%clk 0:00:30.5]}
23... Qh5 {[%clk 0:00:48.7]} 24. Ne3 {[%clk 0:00:18]} 24... Qg5 {[%clk
0:00:42.6]} 25. h3 {[%clk 0:00:15.2]} 25... Qf4 {[%clk 0:00:39.2]} 26. Rd4
{[%clk 0:00:11.7]} 26... Qe5 {[%clk 0:00:35.6]} 27. Rd5 {[%clk 0:00:10.7]} 27...
Qf6 {[%clk 0:00:32.2]} 28. Rf5 {[%clk 0:00:07.9]} 28... Qg6 {[%clk 0:00:32.4]}
29. Rc7 {[%clk 0:00:04.5]} 29... Ng5 {[%clk 0:00:25.5]} 30. Kf1 {[%clk
0:00:01.3]} 30... Ne6 {[%clk 0:00:18.5]} 0-1

[Event "*** Titled Tuesday Blitz"]
[Site "Chess.com"]
[Date "2020.05.26"]
[Round "10"]
[White "blitzking1729"]
[Black "eCztery"]
[Result "1-0"]
[WhiteElo "2493"]
[BlackElo "2326"]
[TimeControl "180+1"]
[EndTime "12:02:38 PDT"]
[Termination "blitzking1729 won by checkmate"]

1. Nf3 {[%clk 0:02:58]} 1... c5 {[%clk 0:02:59.8]} 2. g3 {[%clk 0:02:58.1]} 2...
Nc6 {[%clk 0:02:58.3]} 3. Bg2 {[%clk 0:02:58.1]} 3... g6 {[%clk 0:02:58]} 4. O-O
{[%clk 0:02:58]} 4... Bg7 {[%clk 0:02:57.9]} 5. c3 {[%clk 0:02:57.5]} 5... Nf6
{[%clk 0:02:54.1]} 6. d4 {[%clk 0:02:57]} 6... cxd4 {[%clk 0:02:55]} 7. cxd4
{[%clk 0:02:57.4]} 7... d5 {[%clk 0:02:52.7]} 8. Nc3 {[%clk 0:02:57.3]} 8... O-O
{[%clk 0:02:51.9]} 9. Ne5 {[%clk 0:02:57]} 9... Bf5 {[%clk 0:02:48.6]} 10. Nxc6
{[%clk 0:02:55]} 10... bxc6 {[%clk 0:02:48.1]} 11. b3 {[%clk 0:02:54.9]} 11...
Ne4 {[%clk 0:02:45.8]} 12. Na4 {[%clk 0:02:50.2]} 12... c5 {[%clk 0:02:28.2]}
13. Bb2 {[%clk 0:02:44.9]} 13... cxd4 {[%clk 0:02:26.2]} 14. Bxd4 {[%clk
0:02:43.5]} 14... e5 {[%clk 0:02:26.3]} 15. Bb2 {[%clk 0:02:40.8]} 15... Rc8
{[%clk 0:02:14.5]} 16. Rc1 {[%clk 0:02:36.5]} 16... Rxc1 {[%clk 0:02:06.5]} 17.
Qxc1 {[%clk 0:02:36.4]} 17... Qe7 {[%clk 0:02:05.3]} 18. Ba3 {[%clk 0:02:34.5]}
18... Qd7 {[%clk 0:01:41.8]} 19. Bxf8 {[%clk 0:02:31.9]} 19... Bxf8 {[%clk
0:01:42.7]} 20. Rd1 {[%clk 0:02:31.1]} 20... d4 {[%clk 0:01:35.1]} 21. Bxe4
{[%clk 0:02:04.7]} 21... Bxe4 {[%clk 0:01:36]} 22. Nc5 {[%clk 0:02:04.1]} 22...
Bxc5 {[%clk 0:01:34.2]} 23. Qxc5 {[%clk 0:02:03.5]} 23... Qh3 {[%clk 0:01:18]}
24. f3 {[%clk 0:02:01.5]} 24... Qh6 {[%clk 0:01:13.2]} 25. Qc1 {[%clk 0:01:48]}
25... Qh5 {[%clk 0:01:00.4]} 26. fxe4 {[%clk 0:01:40.5]} 26... Qxe2 {[%clk
0:01:01.3]} 27. Qd2 {[%clk 0:01:14.7]} 27... Qxe4 {[%clk 0:01:01.2]} 28. Re1
{[%clk 0:01:07.2]} 28... Qd5 {[%clk 0:01:01.7]} 29. Qg5 {[%clk 0:01:03.1]} 29...
d3 {[%clk 0:00:58.6]} 30. Rxe5 {[%clk 0:00:45.7]} 30... Qd4+ {[%clk 0:00:51.3]}
31. Qe3 {[%clk 0:00:44.8]} 31... Qa1+ {[%clk 0:00:51.8]} 32. Kg2 {[%clk
0:00:30.7]} 32... Qxa2+ {[%clk 0:00:48.4]} 33. Qf2 {[%clk 0:00:22.3]} 33... d2
{[%clk 0:00:40.6]} 34. Rd5 {[%clk 0:00:19.9]} 34... Qxb3 {[%clk 0:00:38.7]} 35.
Qxd2 {[%clk 0:00:18.9]} 35... Qb7 {[%clk 0:00:39.6]} 36. Kh3 {[%clk 0:00:17.6]}
36... h5 {[%clk 0:00:39.7]} 37. Rd8+ {[%clk 0:00:16.9]} 37... Kh7 {[%clk
0:00:39]} 38. Qd4 {[%clk 0:00:16.4]} 38... Kh6 {[%clk 0:00:32.7]} 39. Rh8+
{[%clk 0:00:14.8]} 39... Kg5 {[%clk 0:00:31.7]} 40. Qf4# {[%clk 0:00:14.6]} 1-0

[Event "*** Titled Tuesday Blitz"]
[Site "Chess.com"]
[Date "2020.05.26"]
[Round "10"]
[White "ArnieChipmunk"]
[Black "sergeikim"]
[Result "0-1"]
[WhiteElo "2290"]
[BlackElo "2407"]
[TimeControl "180+1"]
[EndTime "12:02:38 PDT"]
[Termination "sergeikim won by resignation"]

1. e4 {[%clk 0:03:00.8]} 1... e5 {[%clk 0:02:59.8]} 2. d4 {[%clk 0:03:00.9]}
2... exd4 {[%clk 0:02:58.8]} 3. Qxd4 {[%clk 0:03:01.1]} 3... Nc6 {[%clk
0:02:58.7]} 4. Qe3 {[%clk 0:03:01.4]} 4... Nf6 {[%clk 0:02:57.2]} 5. Nc3 {[%clk
0:03:01.7]} 5... d6 {[%clk 0:02:57]} 6. Bd2 {[%clk 0:03:02]} 6... Be7 {[%clk
0:02:56.9]} 7. O-O-O {[%clk 0:03:02.6]} 7... O-O {[%clk 0:02:56.8]} 8. Qg3
{[%clk 0:03:03.2]} 8... Re8 {[%clk 0:02:51.5]} 9. f3 {[%clk 0:03:03.1]} 9... Bf8
{[%clk 0:02:50.5]} 10. h4 {[%clk 0:03:02.9]} 10... Kh8 {[%clk 0:02:47.6]} 11.
Nh3 {[%clk 0:02:59.8]} 11... Be6 {[%clk 0:02:44.1]} 12. Ng5 {[%clk 0:02:59.6]}
12... h6 {[%clk 0:02:38.8]} 13. f4 {[%clk 0:02:55.6]} 13... Qe7 {[%clk
0:02:27.6]} 14. f5 {[%clk 0:02:53.3]} 14... Bd7 {[%clk 0:02:26.8]} 15. Bc4
{[%clk 0:02:37.7]} 15... Ne5 {[%clk 0:02:25.7]} 16. Bb3 {[%clk 0:02:37.6]} 16...
Kg8 {[%clk 0:01:56.1]} 17. Bf4 {[%clk 0:02:32.7]} 17... Nh5 {[%clk 0:01:56]} 18.
Qf2 {[%clk 0:02:05.9]} 18... Nxf4 {[%clk 0:01:54.6]} 19. Qxf4 {[%clk 0:02:05]}
19... c6 {[%clk 0:01:48.3]} 20. g4 {[%clk 0:01:49.2]} 20... Qf6 {[%clk
0:01:36.3]} 21. Nxf7 {[%clk 0:01:37.3]} 21... Nxf7 {[%clk 0:01:35.2]} 22. g5
{[%clk 0:01:37.5]} 22... Qe5 {[%clk 0:01:27.6]} 23. Qxe5 {[%clk 0:01:35.7]}
23... Rxe5 {[%clk 0:01:27.4]} 24. g6 {[%clk 0:01:36]} 24... Be8 {[%clk
0:01:27.4]} 25. gxf7+ {[%clk 0:01:33]} 25... Bxf7 {[%clk 0:01:26.9]} 26. Rhg1
{[%clk 0:01:26.8]} 26... Bxb3 {[%clk 0:01:20.2]} 27. axb3 {[%clk 0:01:26.8]}
27... Kf7 {[%clk 0:01:17.3]} 28. Rg6 {[%clk 0:01:22.5]} 28... Be7 {[%clk
0:01:12]} 29. Rdg1 {[%clk 0:01:09.5]} 29... Bf6 {[%clk 0:01:11.5]} 30. Rd1
{[%clk 0:01:04.6]} 30... Rd8 {[%clk 0:01:10.4]} 31. h5 {[%clk 0:01:03.2]} 31...
b5 {[%clk 0:01:07.7]} 32. Re1 {[%clk 0:00:59.7]} 32... Rde8 {[%clk 0:01:01.9]}
33. Rd1 {[%clk 0:00:59.4]} 33... Rd8 {[%clk 0:01:01.2]} 34. Re1 {[%clk
0:00:59.5]} 34... b4 {[%clk 0:01:01.3]} 35. Nd1 {[%clk 0:00:59.4]} 35... Rde8
{[%clk 0:01:00.8]} 36. Nf2 {[%clk 0:00:59.6]} 36... Rxf5 {[%clk 0:00:55.8]} 37.
Nd3 {[%clk 0:00:32.3]} 37... Rxh5 {[%clk 0:00:52.6]} 38. Rg2 {[%clk 0:00:28]}
38... a5 {[%clk 0:00:51.2]} 39. Rf2 {[%clk 0:00:20.7]} 39... Kg8 {[%clk
0:00:45.2]} 40. Rg1 {[%clk 0:00:19.5]} 40... Bd4 {[%clk 0:00:43.2]} 0-1

[Event "*** Titled Tuesday Blitz"]
[Site "Chess.com"]
[Date "2020.05.26"]
[Round "10"]
[White "FMchesstrainer"]
[Black "Bhagya_2312"]
[Result "0-1"]
[WhiteElo "2374"]
[BlackElo "2108"]
[TimeControl "180+1"]
[EndTime "12:02:38 PDT"]
[Termination "Bhagya_2312 won by checkmate"]

1. d4 {[%clk 0:02:13.5]} 1... d5 {[%clk 0:02:57.7]} 2. Bg5 {[%clk 0:02:12.3]}
2... c6 {[%clk 0:02:56.2]} 3. e3 {[%clk 0:02:11.8]} 3... Bf5 {[%clk 0:02:54.8]}
4. c4 {[%clk 0:02:10.8]} 4... Qb6 {[%clk 0:02:49]} 5. cxd5 {[%clk 0:02:10.9]}
5... cxd5 {[%clk 0:02:48.4]} 6. Qb3 {[%clk 0:01:57.9]} 6... Qxb3 {[%clk
0:02:42.1]} 7. axb3 {[%clk 0:01:57.3]} 7... Nc6 {[%clk 0:02:42]} 8. Nc3 {[%clk
0:01:55.5]} 8... e6 {[%clk 0:02:41.9]} 9. f3 {[%clk 0:01:50.1]} 9... Bb4 {[%clk
0:02:20.2]} 10. Kf2 {[%clk 0:01:47.9]} 10... Bg6 {[%clk 0:02:13.6]} 11. Nge2
{[%clk 0:01:43.2]} 11... Nge7 {[%clk 0:01:59.6]} 12. Nf4 {[%clk 0:01:42.5]}
12... Bc2 {[%clk 0:01:43.7]} 13. Bd3 {[%clk 0:01:35.3]} 13... Bxb3 {[%clk
0:01:39.1]} 14. Be2 {[%clk 0:01:22.2]} 14... h6 {[%clk 0:01:35.5]} 15. Bh4
{[%clk 0:01:19.1]} 15... g5 {[%clk 0:01:33.3]} 16. Nd3 {[%clk 0:01:18]} 16...
gxh4 {[%clk 0:01:31.4]} 17. Nxb4 {[%clk 0:01:15.8]} 17... Nxb4 {[%clk
0:01:30.8]} 18. Bb5+ {[%clk 0:01:10.8]} 18... Kf8 {[%clk 0:01:29.9]} 19. Ra3
{[%clk 0:01:09.3]} 19... Bc4 {[%clk 0:01:28.5]} 20. Ba4 {[%clk 0:01:07.2]} 20...
a6 {[%clk 0:01:20.7]} 21. Bd1 {[%clk 0:01:02.8]} 21... Kg7 {[%clk 0:01:10.6]}
22. b3 {[%clk 0:01:01.6]} 22... Bb5 {[%clk 0:01:06.2]} 23. f4 {[%clk 0:00:57.7]}
23... Nf5 {[%clk 0:01:02.9]} 24. Bf3 {[%clk 0:00:56.5]} 24... Rac8 {[%clk
0:00:56.2]} 25. Nxb5 {[%clk 0:00:53.4]} 25... axb5 {[%clk 0:00:55.2]} 26. Ra7
{[%clk 0:00:39.6]} 26... Rc2+ {[%clk 0:00:52.8]} 27. Be2 {[%clk 0:00:39.7]}
27... Nd6 {[%clk 0:00:49.6]} 28. Kf3 {[%clk 0:00:30.6]} 28... Rhc8 {[%clk
0:00:41.1]} 29. Rg1 {[%clk 0:00:26.1]} 29... Rd2 {[%clk 0:00:32.2]} 30. g3
{[%clk 0:00:24.6]} 30... h3 {[%clk 0:00:31.5]} 31. Re1 {[%clk 0:00:20.7]} 31...
Rcc2 {[%clk 0:00:23.7]} 32. g4 {[%clk 0:00:20.4]} 32... Ne4 {[%clk 0:00:22.3]}
33. Rxb7 {[%clk 0:00:19.8]} 33... Nd3 {[%clk 0:00:20.5]} 34. Bxd3 {[%clk
0:00:10.3]} 34... Rf2# {[%clk 0:00:19.6]} 0-1

[Event "*** Titled Tuesday Blitz"]
[Site "Chess.com"]
[Date "2020.05.26"]
[Round "10"]
[White "Alexander_Donchenko"]
[Black "Gyapiking"]
[Result "1-0"]
[WhiteElo "2701"]
[BlackElo "2537"]
[TimeControl "180+1"]
[EndTime "12:02:42 PDT"]
[Termination "Alexander_Donchenko won by resignation"]

1. e4 {[%clk 0:03:00.9]} 1... d5 {[%clk 0:02:33.8]} 2. exd5 {[%clk 0:02:59]}
2... Qxd5 {[%clk 0:02:33.2]} 3. Nc3 {[%clk 0:02:59.5]} 3... Qd6 {[%clk 0:02:33]}
4. d4 {[%clk 0:02:58.7]} 4... Nf6 {[%clk 0:02:33]} 5. Nf3 {[%clk 0:02:57]} 5...
c6 {[%clk 0:02:32.8]} 6. h3 {[%clk 0:02:54.6]} 6... Bf5 {[%clk 0:02:27.8]} 7.
Bd3 {[%clk 0:02:53.9]} 7... Bxd3 {[%clk 0:02:25.9]} 8. Qxd3 {[%clk 0:02:54.8]}
8... e6 {[%clk 0:02:25.9]} 9. O-O {[%clk 0:02:54.7]} 9... Nbd7 {[%clk
0:02:25.8]} 10. a4 {[%clk 0:02:48.3]} 10... Be7 {[%clk 0:02:25.6]} 11. a5 {[%clk
0:02:48.4]} 11... a6 {[%clk 0:02:24.8]} 12. Ne2 {[%clk 0:02:37.2]} 12... O-O
{[%clk 0:02:23.9]} 13. Bf4 {[%clk 0:02:27.7]} 13... Qd5 {[%clk 0:02:23.9]} 14.
c3 {[%clk 0:02:19.4]} 14... Qe4 {[%clk 0:02:21.7]} 15. Qxe4 {[%clk 0:02:18.3]}
15... Nxe4 {[%clk 0:02:21.3]} 16. Rfe1 {[%clk 0:02:17.9]} 16... Nef6 {[%clk
0:02:20.2]} 17. Nc1 {[%clk 0:02:14.2]} 17... Nd5 {[%clk 0:02:17.3]} 18. Bg3
{[%clk 0:02:11.4]} 18... Bf6 {[%clk 0:02:15]} 19. Nd3 {[%clk 0:02:10.6]} 19...
Rac8 {[%clk 0:02:13.3]} 20. Ra3 {[%clk 0:02:03.1]} 20... Rfe8 {[%clk 0:02:11.2]}
21. Rb3 {[%clk 0:02:02.5]} 21... b5 {[%clk 0:02:06.1]} 22. axb6 {[%clk
0:02:01.3]} 22... N7xb6 {[%clk 0:02:06.2]} 23. Nc5 {[%clk 0:01:58.6]} 23... a5
{[%clk 0:02:04.3]} 24. Ra1 {[%clk 0:01:54.3]} 24... Ra8 {[%clk 0:02:03.6]} 25.
Nd2 {[%clk 0:01:44.5]} 25... a4 {[%clk 0:02:02.9]} 26. Rba3 {[%clk 0:01:43.6]}
26... Bg5 {[%clk 0:01:59.7]} 27. Nde4 {[%clk 0:01:38.4]} 27... Be7 {[%clk
0:01:55.3]} 28. R3a2 {[%clk 0:01:35.3]} 28... f5 {[%clk 0:01:51.8]} 29. Nd2
{[%clk 0:01:29.6]} 29... Bg5 {[%clk 0:01:49.2]} 30. Nf3 {[%clk 0:01:25.4]} 30...
Bf6 {[%clk 0:01:36.3]} 31. Nxa4 {[%clk 0:01:25.2]} 31... Nxa4 {[%clk 0:01:26.4]}
32. Rxa4 {[%clk 0:01:26.1]} 32... Rxa4 {[%clk 0:01:26]} 33. Rxa4 {[%clk
0:01:27]} 33... f4 {[%clk 0:01:26.4]} 34. Bh4 {[%clk 0:01:27.4]} 34... Rb8
{[%clk 0:01:20.3]} 35. Bxf6 {[%clk 0:01:26.5]} 35... gxf6 {[%clk 0:01:20.1]} 36.
Ra2 {[%clk 0:01:22.6]} 36... Kf7 {[%clk 0:01:17.3]} 37. Kf1 {[%clk 0:01:22.5]}
37... Kg6 {[%clk 0:01:16.5]} 38. Ke2 {[%clk 0:01:21.2]} 38... Kf5 {[%clk
0:01:16.6]} 39. Kd3 {[%clk 0:01:17.5]} 39... Rg8 {[%clk 0:01:13.6]} 40. Ra6
{[%clk 0:01:13.1]} 40... e5 {[%clk 0:01:13.3]} 41. dxe5 {[%clk 0:00:57]} 41...
fxe5 {[%clk 0:01:12.6]} 42. Ke2 {[%clk 0:00:57.5]} 42... Rb8 {[%clk 0:01:07.9]}
43. Ra2 {[%clk 0:00:54.9]} 43... c5 {[%clk 0:01:05.6]} 44. g4+ {[%clk
0:00:48.9]} 44... fxg3 {[%clk 0:01:03.4]} 45. fxg3 {[%clk 0:00:49.8]} 45... e4
{[%clk 0:01:02.7]} 46. Nd2 {[%clk 0:00:48]} 46... h5 {[%clk 0:00:58.8]} 47. Nc4
{[%clk 0:00:44.1]} 47... Rg8 {[%clk 0:00:56.4]} 48. Kf2 {[%clk 0:00:42.1]} 48...
e3+ {[%clk 0:00:55]} 49. Kf3 {[%clk 0:00:42.5]} 49... e2 {[%clk 0:00:54.4]} 50.
Ra1 {[%clk 0:00:41.9]} 50... Re8 {[%clk 0:00:50.9]} 51. Re1 {[%clk 0:00:41.6]}
51... Re4 {[%clk 0:00:23.8]} 52. Nd6+ {[%clk 0:00:41.2]} 1-0